bitfinex-derivatives/quotes_BTCF0:USTF0_20251217
["timestamp","ask_amount","ask_price","bid_price","bid_amount"]
[1765990885103,0.00229733,87058.0,87037.0,0.00017236]
[1765990885292,0.3608,87048.0,87037.0,0.00017236]
[1765990885886,0.0114913,87050.0,87037.0,0.00017236]
[1765990886086,0.0114913,87050.0,87025.0,0.3608]
[1765990886087,0.0114931,87036.0,87034.0,6e-08]
[1765990886285,0.0114937,87032.0,86997.0,0.17992]
[1765990886489,0.33073962,87030.0,87001.0,0.0114977]
[1765990886692,0.48724,87042.0,86997.0,0.17992]
[1765990886895,0.0114943,87028.0,87004.0,0.0114972]
[1765990887094,0.0114946,87025.0,87004.0,0.0114972]
[1765990887297,0.00017236,87025.0,87007.0,0.00017236]
[1765990887502,0.0114951,87021.0,87007.0,0.00017236]
[1765990887705,0.3608,87019.0,87007.0,0.00017236]
[1765990888399,0.3608,87023.0,87009.0,0.3608]
[1765990888989,0.002,87019.0,87009.0,0.3608]
[1765990889396,0.0134954,87019.0,87009.0,0.3608]
[1765990889605,0.0114958,87016.0,87007.0,0.00017236]
[1765990889904,0.33073962,87020.0,86998.0,0.005]
[1765990889905,0.3608,87014.0,86998.0,0.005]
[1765990890090,0.3608,87007.0,86998.0,0.005]
[1765990890893,0.3608,86999.0,86994.0,0.00017236]
[1765990891995,0.00017236,87005.0,86995.0,0.3608]
[1765990892196,0.3608,87000.0,86994.0,2.36e-06]
[1765990893107,0.001,86999.0,86994.0,2.36e-06]
[1765990894307,0.001,86999.0,86979.0,0.0115006]
[1765990894308,0.012498,86999.0,86979.0,0.0115006]
[1765990894602,0.012498,86999.0,86955.0,0.03091549]
[1765990894603,0.00017236,87005.0,86990.0,0.3608]
[1765990894902,0.00017236,87005.0,87004.0,0.3608]
[1765990895110,0.00017236,87005.0,86990.0,0.0114992]
[1765990895406,0.00017236,87005.0,86996.0,0.0114984]
[1765990895796,0.00017236,87005.0,86992.0,0.0114989]
[1765990896200,0.00017236,87005.0,86989.0,0.00017236]
[1765990896201,0.00017236,87005.0,86994.0,0.0114986]
[1765990896896,0.00017236,87005.0,86989.0,0.00017236]
[1765990896897,0.3608,87012.0,87000.0,0.0114978]
[1765990897092,0.3608,87012.0,86996.0,0.3608]
[1765990897093,0.33073962,87010.0,86996.0,0.3608]
[1765990897298,0.3608,87005.0,86996.0,0.3608]
[1765990897600,0.3608,87013.0,86996.0,0.3608]
[1765990898003,0.3608,87013.0,86989.0,2.36e-06]
[1765990898004,0.3608,86997.0,86989.0,2.36e-06]
[1765990898204,0.3608,86997.0,86954.0,0.0115039]
[1765990898205,0.3608,86990.0,86972.0,0.0115015]
[1765990898406,0.3608,86973.0,86962.0,0.0115029]
[1765990898706,0.3608,86973.0,86957.0,0.0165035]
[1765990899008,0.3608,86973.0,86957.0,0.005]
[1765990899193,0.3608,86958.0,86957.0,0.005]
[1765990899606,0.3608,86958.0,86942.0,0.36094397]
[1765990900099,0.3608,86951.0,86942.0,0.00014397]
[1765990900500,0.3608,86951.0,86942.0,0.01164947]
[1765990900694,0.19413,86943.0,86942.0,0.00014397]
[1765990901095,0.19413,86943.0,86938.0,6.93e-06]
[1765990901405,0.19413,86943.0,86927.0,0.0115074]
[1765990901906,0.19413,86943.0,86942.0,0.001]
[1765990902113,0.00017246,86955.0,86942.0,0.3618]
[1765990902404,0.00017246,86955.0,86942.0,0.3733054]
[1765990902909,0.00017246,86955.0,86942.0,0.3723054]
[1765990903106,0.00017246,86955.0,86942.0,0.3608]
[1765990903319,0.00017246,86955.0,86940.0,0.00017246]
[1765990903506,0.3608,86948.0,86935.0,0.19675246]
[1765990904108,0.00017246,86955.0,86944.0,0.3608]
[1765990904304,0.3608,86954.0,86944.0,0.3608]
[1765990904507,0.3608,86954.0,86942.0,0.001]
[1765990904912,0.3608,86954.0,86942.0,0.3618]
[1765990905102,0.00017246,86955.0,86942.0,0.3608]
[1765990905504,0.36097246,86955.0,86942.0,0.3608]
[1765990905709,0.36097246,86955.0,86942.0,0.3618]
[1765990906004,0.69153962,86970.0,86954.0,0.3608]
[1765990906211,0.0115027,86964.0,86954.0,0.3608]
[1765990906504,0.0115023,86967.0,86954.0,0.3608]
[1765990906699,0.3723019,86970.0,86954.0,0.3608]
[1765990906900,0.0115022,86968.0,86954.0,0.3608]
[1765990907406,0.69171208,86970.0,86942.0,0.3618]
[1765990907407,0.3608,86959.0,86942.0,0.3618]
[1765990907604,0.372305,86947.0,86940.0,0.00011265]
[1765990907807,0.0115054,86944.0,86940.0,0.00011265]
[1765990908407,0.3608,86947.0,86940.0,0.00011265]
[1765990909104,0.3608,86941.0,86940.0,0.00011265]
[1765990909310,0.0115066,86935.0,86918.0,0.3608]
[1765990909512,0.3608,86928.0,86918.0,0.3608]
[1765990910211,0.0115083,86921.0,86909.0,0.3608]
[1765990910409,0.3608,86928.0,86916.0,0.3608]
[1765990910801,0.0115075,86927.0,86916.0,0.3608]
[1765990911002,0.3608,86928.0,86916.0,0.3608]
[1765990911197,0.3608,86939.0,86926.0,0.3608]
[1765990911399,0.3608,86936.0,86926.0,0.3608]
[1765990912411,0.22574801,86940.0,86926.0,0.3608]
[1765990912412,0.00017256,86940.0,86926.0,0.3608]
[1765990912712,0.00017256,86940.0,86935.0,0.3608]
[1765990913711,0.001,86936.0,86926.0,0.3608]
[1765990914011,0.001,86936.0,86914.0,0.36097256]
[1765990914212,0.3608,86949.0,86926.0,0.22574801]
[1765990914401,0.3608,86955.0,86944.0,0.3608]
[1765990914712,0.3608,86947.0,86923.0,0.3608]
[1765990914904,0.3608,86955.0,86938.0,0.3608]
[1765990915211,0.36097256,86955.0,86947.0,0.3608]
[1765990915511,0.00017256,86955.0,86947.0,0.3608]
[1765990918109,0.00017256,86955.0,86940.0,0.3608]
[1765990918500,0.0115046,86950.0,86940.0,0.3608]
[1765990918715,0.22574801,86950.0,86940.0,0.3608]
[1765990918917,0.01167646,86955.0,86940.0,0.3608]
[1765990919107,0.01167646,86955.0,86947.0,0.3608]
[1765990919415,0.00017256,86955.0,86947.0,0.3608]
[1765990920218,0.01167646,86955.0,86939.0,0.3608]
[1765990920401,0.01167646,86955.0,86940.0,0.001]
[1765990920913,0.3608,86965.0,86952.0,0.3608]
[1765990921213,1.43872,86995.0,86961.0,0.3608]
[1765990921214,0.3723014,86974.0,86961.0,0.3608]
[1765990921423,0.00229945,86978.0,86970.0,0.3608]
[1765990922119,0.3608,86994.0,86978.0,0.0115007]
[1765990922322,0.3608,86994.0,86977.0,0.3608]
[1765990922323,0.3608,87009.0,86991.0,0.3608]
[1765990922621,0.23724461,87010.0,86999.0,0.3608]
[1765990922622,0.22574801,87010.0,86999.0,0.3608]
[1765990922808,0.005,87020.0,87007.0,0.3608]
[1765990923003,0.005,87020.0,87017.0,0.3608]
[1765990923210,0.3658,87020.0,86996.0,0.3722984]
[1765990923418,0.59154801,87020.0,87004.0,0.3608]
[1765990923604,0.3658,87020.0,87004.0,0.3608]
[1765990923810,0.59154801,87020.0,87004.0,0.3608]
[1765990925107,0.59154801,87020.0,87004.0,0.3722973]
[1765990925420,0.3658,87020.0,87008.0,0.0114967]
[1765990925618,2.46e-06,87021.0,87019.0,0.3608]
[1765990925815,0.3608,87037.0,87020.0,0.0114951]
[1765990926121,0.3608,87037.0,87019.0,0.3608]
[1765990926122,0.22574801,87030.0,87019.0,0.3608]
[1765990926510,0.22574801,87030.0,87020.0,0.0114952]
[1765990926705,0.00017236,87034.0,87019.0,0.3608]
[1765990927108,0.00017236,87034.0,87019.0,0.3722953]
[1765990927408,0.00017236,87034.0,87027.0,0.3608]
[1765990928411,0.00017236,87034.0,87022.0,0.00017236]
[1765990928412,0.00117236,87034.0,87022.0,0.00017236]
[1765990928613,0.3608,87028.0,87020.0,0.19430236]
[1765990928812,0.22574801,87032.0,87010.0,0.0114965]
[1765990929016,0.22574801,87020.0,87009.0,0.3608]
[1765990929208,0.58654801,87020.0,87009.0,0.3608]
[1765990929616,0.50116,87027.0,87017.0,0.3608]
[1765990930021,0.3608,87028.0,87017.0,0.3608]
[1765990930326,0.85372,87028.0,87017.0,0.3608]
[1765990930820,0.85372,87028.0,87009.0,0.3608]
[1765990931414,0.85372,87028.0,87012.0,0.0114963]
[1765990931609,0.85372,87028.0,87009.0,0.3608]
[1765990931823,0.85372,87028.0,87010.0,0.0114964]
[1765990932021,0.85372,87028.0,87013.0,0.0114961]
[1765990932327,0.001,87027.0,87013.0,0.0114961]
[1765990932735,0.22574801,87040.0,87022.0,0.3608]
[1765990933028,1.43808,87059.0,87039.0,0.3608]
[1765990933029,0.72812,87051.0,87039.0,0.3608]
[1765990933218,0.22574801,87050.0,87039.0,0.3608]
[1765990933419,0.3608,87047.0,87032.0,0.3608]
[1765990933615,0.3608,87047.0,87028.0,0.0114941]
[1765990933817,0.00017236,87046.0,87034.0,0.0114934]
[1765990934016,0.00017236,87046.0,87030.0,0.0114939]
[1765990934220,0.00017236,87046.0,87033.0,0.0114935]
[1765990934417,0.00017236,87046.0,87029.0,0.00017236]
[1765990934418,0.00017236,87046.0,87029.0,0.01166626]
[1765990934725,0.00017236,87046.0,87035.0,0.0114932]
[1765990934929,0.00017236,87046.0,87031.0,0.0114937]
[1765990935225,0.00017236,87046.0,87029.0,0.00017236]
[1765990935416,0.00117236,87046.0,87029.0,0.00017236]
[1765990935616,0.00117236,87046.0,87034.0,0.3608]
[1765990935815,0.00117236,87046.0,87029.0,0.00017236]
[1765990936821,0.00117236,87046.0,87033.0,0.0114935]
[1765990937030,0.00017236,87046.0,87030.0,0.0114939]
[1765990937228,0.00017236,87046.0,87029.0,0.00017236]
[1765990937229,0.00017236,87046.0,87035.0,0.0114931]
[1765990937431,0.00017236,87046.0,87032.0,0.0114936]
[1765990937626,0.00017236,87046.0,87029.0,0.00017236]
[1765990937830,0.00017236,87046.0,87033.0,0.0114934]
[1765990938034,0.3608,87039.0,87029.0,0.00017236]
[1765990938629,0.3608,87039.0,87017.0,0.3608]
[1765990938630,0.3722937,87032.0,87017.0,0.3608]
[1765990938831,0.22574801,87030.0,87009.0,0.3608]
[1765990939130,0.22574801,87030.0,87013.0,0.011496]
[1765990939341,0.3608,87025.0,87013.0,0.011496]
[1765990939628,0.3608,87025.0,87010.0,0.00017236]
[1765990939837,0.00017236,87028.0,87024.0,0.3608]
[1765990940032,2.36e-06,87028.0,87024.0,0.3608]
[1765990940222,2.36e-06,87028.0,87027.0,0.3608]
[1765990940418,0.3608,87049.0,87033.0,0.0114934]
[1765990940624,0.34108,87048.0,87046.0,0.3608]
[1765990941224,0.66992,87051.0,87046.0,0.3608]
[1765990941832,0.002,87048.0,87046.0,0.3608]
[1765990942634,0.002,87048.0,87040.0,0.00017236]
[1765990942635,0.3608,87047.0,87040.0,0.00017236]
[1765990942848,0.3608,87047.0,87025.0,0.3608]
[1765990943140,0.3608,87047.0,87037.0,0.0114929]
[1765990943345,0.3608,87071.0,87046.0,0.3608]
[1765990943522,1.43764,87077.0,87036.0,0.0114931]
[1765990943523,0.84476,87059.0,87036.0,0.0114931]
[1765990943727,0.22522089,87050.0,87033.0,0.0114935]
[1765990943924,0.22539325,87050.0,87035.0,0.0114932]
[1765990944126,0.22539325,87050.0,87033.0,0.00017236]
[1765990944337,0.0114915,87049.0,87033.0,0.00017236]
[1765990944644,0.22539325,87050.0,87031.0,0.19413236]
[1765990944645,0.22522089,87043.0,87031.0,0.19413236]
[1765990944934,0.3608,87034.0,87019.0,0.3608]
[1765990945237,0.3608,87027.0,87010.0,0.3608]
[1765990945439,0.3608,87027.0,87017.0,0.3608]
[1765990945735,0.3608,87034.0,87017.0,0.3608]
[1765990945736,0.00017236,87031.0,87017.0,0.3608]
[1765990945938,0.3608,87027.0,87017.0,0.3608]
[1765990946143,0.00017236,87031.0,87017.0,0.3608]
[1765990946144,2.36e-06,87031.0,87026.0,0.3608]
[1765990946334,2.36e-06,87031.0,87029.0,0.0114939]
[1765990946536,2.36e-06,87043.0,87038.0,0.0114928]
[1765990946743,2.36e-06,87043.0,87042.0,0.3608]
[1765990947436,0.00017236,87051.0,87042.0,0.3608]
[1765990947641,0.00017236,87051.0,87049.0,0.3608]
[1765990948039,0.00229733,87058.0,87049.0,0.3608]
[1765990949541,0.01378763,87058.0,87049.0,0.19038]
[1765990949934,0.01378763,87058.0,87034.0,0.00017236]
[1765990949935,0.3608,87052.0,87034.0,0.00017236]
[1765990950138,0.3608,87044.0,87034.0,0.00017236]
[1765990950542,0.00329733,87058.0,87041.0,0.3608]
[1765990950744,0.01478763,87058.0,87051.0,0.3608]
[1765990950946,0.00229733,87058.0,87051.0,0.3608]
[1765990951243,0.00017236,87062.0,87051.0,0.3608]
[1765990951447,2.36e-06,87062.0,87051.0,0.3608]
[1765990951643,0.22522089,87061.0,87051.0,0.3608]
[1765990951831,0.0114905,87056.0,87041.0,0.3608]
[1765990952147,0.3608,87042.0,87034.0,0.00017236]
[1765990952738,0.3608,87042.0,87035.0,0.0114933]
[1765990953034,0.3608,87042.0,87034.0,0.00017236]
[1765990953035,0.19413,87042.0,87034.0,6e-08]
[1765990953232,0.3608,87035.0,87034.0,6e-08]
[1765990955138,0.22522089,87030.0,87015.0,0.3608]
[1765990955339,0.3608,87027.0,87015.0,0.3608]
[1765990955635,0.0114927,87039.0,87024.0,0.3608]
[1765990955836,0.3608,87035.0,87024.0,0.3608]
[1765990956031,0.53208,87041.0,87012.0,0.00017236]
[1765990956032,0.3608,87025.0,87012.0,0.00017236]
[1765990956236,0.3608,87013.0,87012.0,0.00017236]
[1765990956445,0.00017236,87021.0,87012.0,2.36e-06]
[1765990956647,2.36e-06,87021.0,87012.0,2.36e-06]
[1765990957551,0.19413,87018.0,87005.0,0.3608]
[1765990957855,0.19413,87018.0,86956.0,0.06545968]
[1765990957856,0.22522089,87015.0,86981.0,0.0115003]
[1765990958041,0.23671889,87000.0,86978.0,0.0115008]
[1765990958241,0.0164953,87020.0,86966.0,0.0115023]
[1765990958242,0.22522089,86990.0,86966.0,0.0115023]
[1765990958458,0.22522089,86990.0,86957.0,0.005]
[1765990958459,0.22522089,86980.0,86968.0,0.03094713]
[1765990958668,0.22522089,86980.0,86958.0,0.04134962]
[1765990958669,0.22522089,86980.0,86965.0,0.00017247]
[1765990958868,0.00017247,86983.0,86965.0,0.00017247]
[1765990959067,0.00017247,86983.0,86972.0,0.0115016]
[1765990959470,0.00017247,86983.0,86968.0,0.0115021]
[1765990959662,0.00017247,86983.0,86965.0,0.00017247]
[1765990959969,0.00017247,86983.0,86969.0,0.0115019]
[1765990960367,0.00017247,86983.0,86971.0,0.3608]
[1765990960567,7e-08,86983.0,86978.0,0.3608]
[1765990960761,0.22522089,87000.0,86978.0,0.3608]
[1765990960969,0.3608,86979.0,86970.0,0.3608]
[1765990961164,0.3608,86979.0,86965.0,0.00217247]
[1765990961371,0.3608,86971.0,86965.0,0.00217247]
[1765990961564,0.3608,86971.0,86965.0,0.00017247]
[1765990961872,0.00011929,86977.0,86968.0,0.011502]
[1765990962173,0.00011929,86977.0,86965.0,0.36097247]
[1765990963268,0.00011929,86977.0,86965.0,0.00217247]
[1765990963773,0.3608,86972.0,86956.0,0.3608]
[1765990963961,0.3608,86961.0,86947.0,0.3608]
[1765990964270,0.3608,86954.0,86938.0,0.0023005]
[1765990964573,0.3608,86947.0,86938.0,0.0023005]
[1765990964779,0.3608,86940.0,86938.0,0.0023005]
[1765990964968,0.00010345,86939.0,86934.0,2.47e-06]
[1765990965771,0.00010345,86939.0,86919.0,0.0115086]
[1765990965973,0.3608,86924.0,86915.0,0.0165091]
[1765990966170,0.00010345,86923.0,86920.0,0.3608]
[1765990966674,0.00010345,86923.0,86913.0,0.00017257]
[1765990966873,0.22532434,86923.0,86902.0,0.0115107]
[1765990967269,0.22532434,86923.0,86911.0,0.3608]
[1765990967472,0.22522089,86921.0,86900.0,0.3608]
[1765990967882,0.22522089,86921.0,86902.0,0.00017257]
[1765990968069,0.22522089,86921.0,86902.0,0.01368337]
[1765990968268,0.22522089,86912.0,86902.0,0.00217257]
[1765990968477,0.00010345,86911.0,86902.0,0.00217257]
[1765990969280,0.49046345,86911.0,86902.0,0.00217257]
[1765990969577,0.49046345,86911.0,86869.0,0.0115151]
[1765990969578,0.0115113,86899.0,86869.0,0.0115151]
[1765990969875,0.49046345,86911.0,86869.0,0.0115151]
[1765990969876,0.22522089,86890.0,86869.0,0.0115151]
[1765990970086,0.22522089,86884.0,86860.0,0.22522089]
[1765990970278,0.0115099,86909.0,86881.0,0.0115136]
[1765990970585,0.22522089,86900.0,86886.0,0.00017257]
[1765990970877,0.0001277,86899.0,86886.0,0.00017257]
[1765990971076,0.0001277,86899.0,86887.0,0.3608]
[1765990971276,0.0001277,86899.0,86891.0,0.3608]
[1765990971467,0.0001277,86899.0,86886.0,0.00017257]
[1765990971468,0.3608,86892.0,86886.0,0.00017257]
[1765990972975,0.0001277,86899.0,86889.0,0.3608]
[1765990973678,0.0011277,86899.0,86889.0,0.3608]
[1765990973983,0.3608,86892.0,86886.0,7e-08]
[1765990974177,0.0011277,86899.0,86886.0,0.36080007]
[1765990974366,2.67e-06,86904.0,86889.0,0.0115125]
[1765990974571,2.67e-06,86904.0,86886.0,7e-08]
[1765990974572,2.67e-06,86904.0,86895.0,0.0115117]
[1765990974771,2.67e-06,86904.0,86901.0,0.3608]
[1765990974970,0.36080267,86904.0,86891.0,0.3608]
[1765990975171,0.0115107,86903.0,86891.0,0.3608]
[1765990975373,0.0115115,86897.0,86886.0,7e-08]
[1765990975578,0.3608,86890.0,86886.0,7e-08]
[1765990975776,9.227e-05,86889.0,86886.0,7e-08]
[1765990976575,0.19422227,86890.0,86886.0,7e-08]
[1765990976774,0.7286,86895.0,86889.0,0.3608]
[1765990976988,0.0115113,86899.0,86889.0,0.3608]
[1765990977183,0.36080267,86904.0,86889.0,0.3608]
[1765990977389,0.52384,86903.0,86889.0,0.3723125]
[1765990977681,0.36080267,86904.0,86889.0,0.3608]
[1765990977877,0.37231337,86904.0,86889.0,0.3608]
[1765990978276,0.0115124,86891.0,86886.0,7e-08]
[1765990978484,0.33148575,86900.0,86886.0,7e-08]
[1765990978787,0.33148575,86900.0,86874.0,0.3658]
[1765990978788,0.3608,86887.0,86874.0,0.3658]
[1765990979193,2.67e-06,86904.0,86883.0,0.3608]
[1765990979489,2.67e-06,86904.0,86874.0,0.3658]
[1765990979490,2.67e-06,86904.0,86896.0,0.3608]
[1765990980582,2.67e-06,86904.0,86896.0,0.3618]
[1765990981087,2.67e-06,86904.0,86899.0,0.0115112]
[1765990981291,7e-08,86904.0,86897.0,0.0115115]
[1765990981584,0.3608,86909.0,86896.0,0.3608]
[1765990982888,0.3608,86909.0,86896.0,0.3618]
[1765990983088,0.3608,86909.0,86880.0,0.0115136]
[1765990983089,0.3608,86897.0,86880.0,0.0115136]
[1765990983286,0.3608,86885.0,86874.0,0.005]
[1765990983991,0.3608,86875.0,86860.0,0.3723163]
[1765990984196,0.3608,86875.0,86863.0,0.0115159]
[1765990984391,0.3608,86877.0,86864.0,0.3608]
[1765990984601,0.3608,86877.0,86874.0,0.003]
[1765990985299,0.3608,86877.0,86864.0,0.3608]
[1765990985681,0.3608,86877.0,86862.0,0.00016818]
[1765990985998,0.3608,86877.0,86858.0,0.00230262]
[1765990985999,0.0115155,86868.0,86858.0,0.00230262]
[1765990986292,0.69228575,86870.0,86858.0,0.00230262]
[1765990986495,0.3608,86870.0,86862.0,0.3608]
[1765990986687,0.72856,86878.0,86869.0,0.3608]
[1765990986890,0.00017257,86879.0,86869.0,0.3608]
[1765990987301,0.00017257,86879.0,86858.0,0.00230262]
[1765990987302,0.3608,86873.0,86866.0,0.002]
[1765990987600,0.3608,86873.0,86860.0,0.3608]
[1765990987805,0.01168647,86879.0,86868.0,0.3608]
[1765990987994,0.3608,86873.0,86860.0,0.3608]
[1765990989604,0.3608,86873.0,86860.0,0.3618]
[1765990990308,0.3723148,86873.0,86860.0,0.3618]
[1765990990496,0.3608,86873.0,86860.0,0.3618]
[1765990990696,0.0115148,86872.0,86860.0,0.3618]
[1765990990904,0.3608,86873.0,86860.0,0.3618]
[1765990991099,0.3723148,86873.0,86860.0,0.3618]
[1765990991301,0.3608,86863.0,86858.0,0.00230262]
[1765990991505,0.3608,86863.0,86849.0,0.3608]
[1765990991701,0.3608,86873.0,86858.0,0.3608]
[1765990991903,0.95132,86873.0,86866.0,0.3608]
[1765990992399,0.95132,86873.0,86866.0,0.19413]
[1765990992603,0.0115164,86861.0,86845.0,0.3608]
[1765990992805,0.3608,86873.0,86849.0,0.3608]
[1765990992997,0.00017268,86870.0,86869.0,0.3608]
[1765990993196,0.00017268,86878.0,86869.0,0.3608]
[1765990993398,0.0115145,86875.0,86856.0,0.3608]
[1765990993700,0.0115145,86875.0,86856.0,0.3723169]
[1765990993898,0.3608,86876.0,86856.0,0.3723169]
[1765990994105,0.3608,86876.0,86856.0,0.3608]
[1765990994305,0.00017268,86878.0,86843.0,0.3608]
[1765990994306,0.3608,86860.0,86843.0,0.3608]
[1765990994606,0.36097268,86860.0,86845.0,0.3608]
[1765990994801,0.36097268,86860.0,86858.0,0.001]
[1765990995894,0.0115169,86857.0,86845.0,0.3608]
[1765990996104,0.0115184,86845.0,86826.0,0.0115208]
[1765990996309,0.3608,86834.0,86826.0,0.0115208]
[1765990996498,0.3608,86834.0,86814.0,0.3608]
[1765990997200,0.3608,86815.0,86796.0,0.3608]
[1765990997401,0.33148575,86810.0,86787.0,0.011526]
[1765990997706,0.00017278,86814.0,86802.0,0.0115241]
[1765990997911,0.04954278,86816.0,86796.0,0.0115248]
[1765990998115,0.04954278,86816.0,86795.0,0.011525]
[1765990998308,0.3608,86809.0,86797.0,0.0115247]
[1765990998710,0.3608,86809.0,86796.0,0.3608]
[1765990998903,0.3608,86809.0,86794.0,0.00017278]
[1765990998904,0.3608,86801.0,86794.0,0.00017278]
[1765991000401,0.00017278,86811.0,86800.0,0.3608]
[1765991000712,0.0115231,86810.0,86800.0,0.3608]
[1765991000916,0.00017278,86811.0,86800.0,0.3608]
[1765991001414,0.36097278,86811.0,86798.0,0.3608]
[1765991001808,0.0115236,86806.0,86798.0,0.3608]
[1765991002013,0.33148575,86810.0,86798.0,0.3608]
[1765991002014,0.33248575,86810.0,86798.0,0.3608]
[1765991002210,0.001,86810.0,86798.0,0.3608]
[1765991002512,0.19413278,86821.0,86805.0,0.3608]
[1765991002704,0.33148575,86820.0,86805.0,0.3608]
[1765991002904,0.0115224,86816.0,86805.0,0.3608]
[1765991003406,0.19413278,86821.0,86805.0,0.3608]
[1765991003606,0.00017278,86819.0,86812.0,0.3608]
[1765991004219,2.78e-06,86819.0,86812.0,0.3608]
[1765991006304,0.001,86819.0,86812.0,0.3608]
[1765991006905,0.00017278,86824.0,86812.0,0.3608]
[1765991007121,0.00017278,86824.0,86819.0,0.3608]
[1765991007406,0.00017278,86824.0,86813.0,0.00017278]
[1765991007606,0.00017278,86824.0,86813.0,8e-08]
[1765991007607,0.3608,86816.0,86813.0,8e-08]
[1765991008513,0.3723224,86816.0,86813.0,8e-08]
[1765991008900,0.00117278,86824.0,86813.0,0.36080008]
[1765991009102,0.00117278,86824.0,86821.0,0.3608]
[1765991009717,0.00017278,86824.0,86821.0,0.3608]
[1765991010409,0.00117278,86824.0,86821.0,0.3608]
[1765991011321,0.00117278,86824.0,86813.0,8e-08]
[1765991012204,0.0115223,86816.0,86813.0,8e-08]
[1765991012409,0.3608,86818.0,86813.0,8e-08]
[1765991012922,0.372322,86818.0,86813.0,8e-08]
[1765991013218,0.3608,86818.0,86813.0,8e-08]
[1765991013415,0.3723221,86818.0,86813.0,8e-08]
[1765991013619,0.0115223,86816.0,86813.0,8e-08]
[1765991014809,0.0135223,86816.0,86813.0,8e-08]
[1765991015311,0.3743223,86816.0,86813.0,8e-08]
[1765991017618,0.3628,86816.0,86813.0,8e-08]
[1765991017824,0.00017278,86824.0,86816.0,0.0115222]
[1765991018019,0.00017278,86824.0,86815.0,0.3608]
[1765991018323,0.00017278,86824.0,86813.0,8e-08]
[1765991018514,0.00017278,86824.0,86816.0,0.0115222]
[1765991018714,0.00017278,86824.0,86814.0,0.3608]
[1765991019727,0.002,86816.0,86814.0,0.3608]
[1765991020329,0.00017278,86824.0,86814.0,0.3608]
[1765991020817,0.00017278,86824.0,86814.0,0.3723225]
[1765991021125,0.002,86816.0,86814.0,0.3608]
[1765991021517,0.00017278,86824.0,86814.0,0.3608]
[1765991021717,0.3608,86815.0,86813.0,8e-08]
[1765991022615,0.3723225,86815.0,86813.0,8e-08]
[1765991022818,0.0115229,86811.0,86791.0,1e-07]
[1765991023027,0.3608,86795.0,86791.0,1e-07]
[1765991024421,0.00017278,86802.0,86792.0,0.3608]
[1765991024835,0.0115242,86801.0,86792.0,0.3608]
[1765991025021,0.00017278,86802.0,86792.0,0.3608]
[1765991026627,0.00017278,86802.0,86791.0,1e-07]
[1765991026931,0.00217278,86802.0,86791.0,1e-07]
[1765991027432,0.0115243,86801.0,86791.0,1e-07]
[1765991027626,0.0115252,86794.0,86791.0,1e-07]
[1765991028217,0.3608,86795.0,86768.0,0.0115286]
[1765991028218,0.0115262,86787.0,86768.0,0.0115286]
[1765991028424,0.3608,86792.0,86774.0,0.3608]
[1765991028634,0.3608,86799.0,86785.0,0.3608]
[1765991029929,0.001,86794.0,86785.0,0.3608]
[1765991030129,0.001,86794.0,86786.0,0.0115262]
[1765991030335,0.3608,86799.0,86785.0,0.3608]
[1765991031233,0.011525,86796.0,86783.0,0.00017278]
[1765991031429,0.3608,86799.0,86788.0,0.3608]
[1765991032120,0.3608,86799.0,86783.0,0.00017278]
[1765991032321,0.0115253,86794.0,86784.0,0.3608]
[1765991032537,0.3608,86787.0,86783.0,0.00017278]
[1765991033127,0.3608,86787.0,86785.0,0.001]
[1765991033942,0.3608,86786.0,86753.0,0.3608]
[1765991034141,0.33205446,86800.0,86737.0,0.3608]
[1765991034142,0.3608,86757.0,86737.0,0.3608]
[1765991034436,0.3608,86754.0,86737.0,0.3608]
[1765991034635,0.3608,86754.0,86739.0,0.0115324]
[1765991034935,0.3608,86764.0,86748.0,0.3608]
[1765991035137,0.3608,86764.0,86740.0,0.33205446]
[1765991035138,0.0115239,86804.0,86733.0,0.28052]
[1765991035139,0.3608,86753.0,86733.0,0.05]
[1765991035336,0.3608,86753.0,86746.0,0.0115315]
[1765991035528,0.3608,86759.0,86742.0,0.011532]
[1765991035843,0.01153,86758.0,86741.0,0.3608]
[1765991036132,0.0115305,86754.0,86742.0,0.37016]
[1765991036334,0.3608,86751.0,86742.0,0.37016]
[1765991036930,8.33e-05,86757.0,86742.0,0.37016]
[1765991037146,0.3608,86767.0,86750.0,0.3608]
[1765991037639,0.0115294,86763.0,86750.0,0.3608]
[1765991038042,0.22668131,86760.0,86750.0,0.3608]
[1765991038432,0.0115292,86764.0,86750.0,0.3608]
[1765991038632,0.0001729,86765.0,86750.0,0.3608]
[1765991039343,0.3608,86784.0,86764.0,0.3608]
[1765991039539,0.3608,86784.0,86771.0,0.3608]
[1765991039740,0.011527,86780.0,86771.0,0.3608]
[1765991040334,0.3608,86773.0,86767.0,0.0001729]
[1765991041140,0.7216,86773.0,86754.0,0.30384]
[1765991041442,0.3608,86763.0,86749.0,0.005]
[1765991041741,0.3608,86755.0,86738.0,0.00230581]
[1765991041944,0.3608,86755.0,86744.0,0.3608]
[1765991042241,0.0115309,86752.0,86744.0,0.3608]
[1765991042944,0.3608,86755.0,86744.0,0.3608]
[1765991043443,0.0001729,86758.0,86744.0,0.3608]
[1765991043444,0.0001729,86758.0,86752.0,0.3608]
[1765991043630,0.3608,86753.0,86741.0,0.0001729]
[1765991044342,0.3608,86753.0,86742.0,0.0115321]
[1765991044544,0.0115311,86750.0,86741.0,0.0001729]
[1765991044744,0.3608,86753.0,86741.0,0.0001729]
[1765991044939,0.001,86755.0,86742.0,0.3608]
[1765991045844,0.3608,86768.0,86742.0,0.3608]
[1765991045845,0.22668131,86780.0,86754.0,0.3608]
[1765991046143,0.22668131,86780.0,86750.0,0.011531]
[1765991046144,0.0115264,86785.0,86779.0,0.7216]
[1765991046341,0.3608,86784.0,86766.0,0.0115288]
[1765991046643,0.3608,86784.0,86765.0,0.3608]
[1765991046644,0.0115271,86780.0,86765.0,0.3608]
[1765991046948,0.22668131,86780.0,86765.0,0.3608]
[1765991047539,0.23820841,86780.0,86765.0,0.3608]
[1765991047739,0.0115289,86767.0,86747.0,0.3608]
[1765991047947,0.3608,86761.0,86750.0,0.011531]
[1765991048335,0.3608,86761.0,86747.0,0.3608]
[1765991048537,0.3608,86753.0,86740.0,0.70772131]
[1765991048738,0.3608,86753.0,86746.0,0.0115314]
[1765991049333,0.3608,86753.0,86742.0,0.0001729]